[Event "*** Titled Tuesday Blitz"]
[Site "Chess.com"]
[Date "2020.12.29"]
[Round "2"]
[White "davidkalashian"]
[Black "mishanick"]
[Result "0-1"]
[WhiteElo "2595"]
[BlackElo "2985"]
[TimeControl "180+1"]
[EndTime "10:18:27 PST"]
[Termination "mishanick won on time"]

1. d4 {[%clk 0:03:00]} 1... Nf6 {[%clk 0:02:59.6]} 2. c4 {[%clk 0:02:58.4]} 2...
e6 {[%clk 0:02:59.8]} 3. Nf3 {[%clk 0:02:58.1]} 3... d5 {[%clk 0:02:52.2]} 4.
Nc3 {[%clk 0:02:57.9]} 4... dxc4 {[%clk 0:02:52]} 5. e3 {[%clk 0:02:57.6]} 5...
a6 {[%clk 0:02:51.8]} 6. a4 {[%clk 0:02:58.1]} 6... b6 {[%clk 0:02:52.2]} 7.
Bxc4 {[%clk 0:02:57.8]} 7... Bb7 {[%clk 0:02:52.6]} 8. O-O {[%clk 0:02:58.3]}
8... Bb4 {[%clk 0:02:53.3]} 9. Qe2 {[%clk 0:02:54.5]} 9... O-O {[%clk
0:02:51.9]} 10. Rd1 {[%clk 0:02:54.4]} 10... Qe7 {[%clk 0:02:49.8]} 11. Bd3
{[%clk 0:02:39.8]} 11... c5 {[%clk 0:02:43.3]} 12. dxc5 {[%clk 0:02:39.4]} 12...
Bxc5 {[%clk 0:02:41.9]} 13. b3 {[%clk 0:02:31.9]} 13... Nbd7 {[%clk 0:02:40.5]}
14. Bb2 {[%clk 0:02:31.4]} 14... Rfd8 {[%clk 0:02:35.9]} 15. h3 {[%clk
0:02:30.7]} 15... h6 {[%clk 0:02:31]} 16. Nd2 {[%clk 0:02:18.2]} 16... Ne5
{[%clk 0:02:29.5]} 17. Bc2 {[%clk 0:02:15.2]} 17... Rac8 {[%clk 0:02:24.2]} 18.
Nde4 {[%clk 0:02:12.8]} 18... Bb4 {[%clk 0:01:28.5]} 19. Nxf6+ {[%clk
0:01:50.4]} 19... Qxf6 {[%clk 0:01:28.5]} 20. Rxd8+ {[%clk 0:01:34.6]} 20...
Qxd8 {[%clk 0:01:20.5]} 21. Ne4 {[%clk 0:01:21.5]} 21... Ng6 {[%clk 0:00:48.1]}
22. Rd1 {[%clk 0:01:08.5]} 22... Qc7 {[%clk 0:00:47.5]} 23. Bb1 {[%clk
0:01:08.7]} 23... Qc6 {[%clk 0:00:42.7]} 24. f3 {[%clk 0:00:58.5]} 24... Be7
{[%clk 0:00:31.8]} 25. Ng3 {[%clk 0:00:52]} 25... Nh4 {[%clk 0:00:27.7]} 26. Nh5
{[%clk 0:00:46.4]} 26... f6 {[%clk 0:00:16.8]} 27. Qd3 {[%clk 0:00:35.6]} 27...
Nf5 {[%clk 0:00:14.8]} 28. Rc1 {[%clk 0:00:25.3]} 28... Qe8 {[%clk 0:00:13.8]}
29. Rxc8 {[%clk 0:00:24.2]} 29... Qxc8 {[%clk 0:00:14.7]} 30. Nf4 {[%clk
0:00:23.9]} 30... Bc5 {[%clk 0:00:10.6]} 31. Kh2 {[%clk 0:00:07.7]} 31... Bxe3
{[%clk 0:00:10.5]} 32. Nxe6 {[%clk 0:00:07.7]} 32... Qxe6 {[%clk 0:00:11]} 33.
Qxf5 {[%clk 0:00:08.1]} 33... Qd6+ {[%clk 0:00:11.3]} 34. Kh1 {[%clk 0:00:04.4]}
34... Qd1+ {[%clk 0:00:11]} 35. Kh2 {[%clk 0:00:04.8]} 35... Qg1+ {[%clk
0:00:09.9]} 36. Kg3 {[%clk 0:00:04.8]} 36... Bf2+ {[%clk 0:00:10.5]} 37. Kf4
{[%clk 0:00:03.7]} 37... Qh2+ {[%clk 0:00:10.6]} 0-1

[Event "*** Titled Tuesday Blitz"]
[Site "Chess.com"]
[Date "2020.12.29"]
[Round "2"]
[White "Rud_Makarian"]
[Black "NMShanMeruga"]
[Result "1-0"]
[WhiteElo "2676"]
[BlackElo "2401"]
[TimeControl "180+1"]
[EndTime "10:18:27 PST"]
[Termination "Rud_Makarian won on time"]

1. e4 {[%clk 0:02:56.6]} 1... d5 {[%clk 0:03:00.1]} 2. exd5 {[%clk 0:02:56.3]}
2... Qxd5 {[%clk 0:03:01]} 3. Nc3 {[%clk 0:02:56.9]} 3... Qd8 {[%clk 0:03:00.3]}
4. Nf3 {[%clk 0:02:55.5]} 4... c6 {[%clk 0:02:58.7]} 5. d4 {[%clk 0:02:55.6]}
5... Bg4 {[%clk 0:02:53.4]} 6. Bc4 {[%clk 0:02:54.8]} 6... e6 {[%clk 0:02:51.6]}
7. O-O {[%clk 0:02:54.9]} 7... Nd7 {[%clk 0:02:49.7]} 8. h3 {[%clk 0:02:53.5]}
8... Bxf3 {[%clk 0:02:48.3]} 9. Qxf3 {[%clk 0:02:54.4]} 9... Ngf6 {[%clk
0:02:49.2]} 10. Bg5 {[%clk 0:02:53.9]} 10... Be7 {[%clk 0:02:45.5]} 11. Rfe1
{[%clk 0:02:49.5]} 11... O-O {[%clk 0:02:43.6]} 12. Rad1 {[%clk 0:02:49.1]}
12... Nd5 {[%clk 0:02:39.2]} 13. Bxe7 {[%clk 0:02:44.7]} 13... Nxe7 {[%clk
0:02:37.5]} 14. Ne4 {[%clk 0:02:42.4]} 14... b5 {[%clk 0:02:32.3]} 15. Bd3
{[%clk 0:02:41.7]} 15... Qc8 {[%clk 0:02:30.6]} 16. c3 {[%clk 0:02:39.9]} 16...
Qc7 {[%clk 0:02:28.7]} 17. a3 {[%clk 0:02:32]} 17... a5 {[%clk 0:02:26.8]} 18.
Ng5 {[%clk 0:02:25.1]} 18... h6 {[%clk 0:02:22.5]} 19. Nxe6 {[%clk 0:01:31.2]}
19... fxe6 {[%clk 0:01:48]} 20. Qe4 {[%clk 0:01:31.7]} 20... Nf6 {[%clk
0:01:34.4]} 21. Qxe6+ {[%clk 0:01:32]} 21... Rf7 {[%clk 0:01:35]} 22. c4 {[%clk
0:01:22.7]} 22... Rf8 {[%clk 0:01:26.1]} 23. cxb5 {[%clk 0:01:20.4]} 23... cxb5
{[%clk 0:01:24.6]} 24. Bxb5 {[%clk 0:01:11.4]} 24... Kh8 {[%clk 0:01:18.8]} 25.
Bc4 {[%clk 0:01:06.1]} 25... Ng6 {[%clk 0:01:13.4]} 26. b3 {[%clk 0:00:47.1]}
26... Rd7 {[%clk 0:01:10.6]} 27. d5 {[%clk 0:00:39.4]} 27... Rfd8 {[%clk
0:01:06.2]} 28. g3 {[%clk 0:00:17.3]} 28... Rd6 {[%clk 0:01:03.6]} 29. Qe2
{[%clk 0:00:09.1]} 29... Nxd5 {[%clk 0:01:00.1]} 30. Qe4 {[%clk 0:00:08.3]}
30... Nc3 {[%clk 0:00:51.1]} 31. Qe8+ {[%clk 0:00:08.4]} 31... Kh7 {[%clk
0:00:34.8]} 32. Bg8+ {[%clk 0:00:07.6]} 32... Kh8 {[%clk 0:00:29.4]} 33. Bf7+
{[%clk 0:00:07.5]} 33... Nf8 {[%clk 0:00:26]} 34. Rxd6 {[%clk 0:00:02]} 34...
Rxe8 {[%clk 0:00:19.2]} 35. Rxe8 {[%clk 0:00:02.9]} 35... Qxd6 {[%clk
0:00:03.5]} 36. Bc4 {[%clk 0:00:03.2]} 1-0

[Event "*** Titled Tuesday Blitz"]
[Site "Chess.com"]
[Date "2020.12.29"]
[Round "2"]
[White "mbojan"]
[Black "BulletMercenary"]
[Result "1-0"]
[WhiteElo "2674"]
[BlackElo "2340"]
[TimeControl "180+1"]
[EndTime "10:18:27 PST"]
[Termination "mbojan won on time"]

1. Nf3 {[%clk 0:03:00.9]} 1... d5 {[%clk 0:02:59.7]} 2. c4 {[%clk 0:03:00.8]}
2... Nf6 {[%clk 0:02:58.5]} 3. cxd5 {[%clk 0:03:00.7]} 3... Nxd5 {[%clk
0:02:58.7]} 4. e4 {[%clk 0:03:01]} 4... Nb6 {[%clk 0:02:58.7]} 5. d4 {[%clk
0:03:01.3]} 5... g6 {[%clk 0:02:58.1]} 6. h4 {[%clk 0:03:01.3]} 6... h5 {[%clk
0:02:57.4]} 7. Nc3 {[%clk 0:03:00.3]} 7... Bg7 {[%clk 0:02:52.5]} 8. Be3 {[%clk
0:02:56.5]} 8... Bg4 {[%clk 0:02:50.8]} 9. Qd2 {[%clk 0:02:56.5]} 9... Bxf3
{[%clk 0:02:45.8]} 10. gxf3 {[%clk 0:02:56.5]} 10... e5 {[%clk 0:02:38.2]} 11.
d5 {[%clk 0:02:56.5]} 11... Qf6 {[%clk 0:02:29]} 12. Bg5 {[%clk 0:02:40.5]}
12... Qxf3 {[%clk 0:02:02.5]} 13. Rh3 {[%clk 0:02:24.4]} 13... Qg4 {[%clk
0:01:55.4]} 14. Rg3 {[%clk 0:02:20.9]} 14... Qd7 {[%clk 0:01:46.5]} 15. Bh3
{[%clk 0:02:20.8]} 15... f5 {[%clk 0:01:14]} 16. b3 {[%clk 0:02:11]} 16... Qf7
{[%clk 0:00:58.8]} 17. exf5 {[%clk 0:01:48.2]} 17... gxf5 {[%clk 0:00:59.7]} 18.
Rf3 {[%clk 0:01:48.2]} 18... f4 {[%clk 0:00:54.9]} 19. Rd1 {[%clk 0:01:43.3]}
19... N8d7 {[%clk 0:00:48.6]} 20. a4 {[%clk 0:01:28.3]} 20... Bf6 {[%clk
0:00:43.7]} 21. Ne4 {[%clk 0:01:24.1]} 21... Bxg5 {[%clk 0:00:36.8]} 22. Nxg5
{[%clk 0:01:23.8]} 22... Qf6 {[%clk 0:00:33.3]} 23. a5 {[%clk 0:01:09]} 23...
Nc8 {[%clk 0:00:30.6]} 24. Ne6 {[%clk 0:01:09.3]} 24... Nd6 {[%clk 0:00:25.9]}
25. Nxc7+ {[%clk 0:01:04.8]} 25... Ke7 {[%clk 0:00:26.2]} 26. Bxd7 {[%clk
0:01:02.6]} 26... Kxd7 {[%clk 0:00:18.7]} 27. Nxa8 {[%clk 0:01:02.6]} 27... Rxa8
{[%clk 0:00:19.4]} 28. Rc1 {[%clk 0:01:01.9]} 28... Qxh4 {[%clk 0:00:17.6]} 29.
Qc2 {[%clk 0:00:59.2]} 29... Rc8 {[%clk 0:00:10.1]} 30. Qh7+ {[%clk 0:00:57.4]}
30... Qe7 {[%clk 0:00:10.5]} 31. Qxe7+ {[%clk 0:00:51.9]} 31... Kxe7 {[%clk
0:00:11.4]} 32. Rxc8 {[%clk 0:00:52.3]} 32... Nxc8 {[%clk 0:00:12.2]} 33. Rh3
{[%clk 0:00:53.1]} 33... Kd6 {[%clk 0:00:12.5]} 34. Rxh5 {[%clk 0:00:53.4]}
34... Kxd5 {[%clk 0:00:13.1]} 35. Kd2 {[%clk 0:00:51.5]} 35... Nd6 {[%clk
0:00:11.4]} 36. Kd3 {[%clk 0:00:52.1]} 36... b6 {[%clk 0:00:09.6]} 37. a6 {[%clk
0:00:48.9]} 37... Nb5 {[%clk 0:00:06.5]} 38. Rh7 {[%clk 0:00:42.2]} 38... e4+
{[%clk 0:00:06.7]} 39. Kd2 {[%clk 0:00:41.9]} 39... Nd4 {[%clk 0:00:06.8]} 40.
Rxa7 {[%clk 0:00:38.3]} 40... Nxb3+ {[%clk 0:00:07.1]} 41. Kc3 {[%clk
0:00:38.9]} 41... Nc5 {[%clk 0:00:07.6]} 42. Rd7+ {[%clk 0:00:35.1]} 42... Nxd7
{[%clk 0:00:03.2]} 43. a7 {[%clk 0:00:35.5]} 43... b5 {[%clk 0:00:03.2]} 44.
a8=Q+ {[%clk 0:00:35.5]} 44... Kc5 {[%clk 0:00:04.1]} 45. Qxe4 {[%clk
0:00:35.4]} 45... Nb6 {[%clk 0:00:04.1]} 46. Qd4+ {[%clk 0:00:30.1]} 46... Kc6
{[%clk 0:00:04]} 47. Kc2 {[%clk 0:00:29.1]} 47... Nd5 {[%clk 0:00:04.1]} 48. f3
{[%clk 0:00:27.3]} 48... b4 {[%clk 0:00:03.7]} 49. Kb3 {[%clk 0:00:27.5]} 49...
Kd6 {[%clk 0:00:04.6]} 50. Kc4 {[%clk 0:00:27.5]} 1-0

[Event "*** Titled Tuesday Blitz"]
[Site "Chess.com"]
[Date "2020.12.29"]
[Round "2"]
[White "Sjakkerntobi"]
[Black "LawrenceTrent"]
[Result "0-1"]
[WhiteElo "2311"]
[BlackElo "2519"]
[TimeControl "180+1"]
[EndTime "10:18:27 PST"]
[Termination "LawrenceTrent won on time"]

1. e4 {[%clk 0:03:00.9]} 1... c5 {[%clk 0:02:59.6]} 2. Nf3 {[%clk 0:03:00.8]}
2... Nc6 {[%clk 0:02:59.1]} 3. d4 {[%clk 0:03:01.2]} 3... cxd4 {[%clk
0:02:59.3]} 4. Nxd4 {[%clk 0:03:02.1]} 4... Nf6 {[%clk 0:02:59]} 5. Nc3 {[%clk
0:03:02]} 5... e6 {[%clk 0:02:59.2]} 6. Ndb5 {[%clk 0:02:57.8]} 6... Bc5 {[%clk
0:02:58.2]} 7. Nd6+ {[%clk 0:02:55.1]} 7... Ke7 {[%clk 0:02:52.6]} 8. Bf4 {[%clk
0:02:53.3]} 8... e5 {[%clk 0:02:49.8]} 9. Nf5+ {[%clk 0:02:52]} 9... Kf8 {[%clk
0:02:49.9]} 10. Be3 {[%clk 0:02:42.4]} 10... Bxe3 {[%clk 0:02:42.2]} 11. Nxe3
{[%clk 0:02:43.3]} 11... d6 {[%clk 0:02:38.7]} 12. Bc4 {[%clk 0:02:31]} 12... g6
{[%clk 0:02:35.2]} 13. O-O {[%clk 0:02:30.6]} 13... Kg7 {[%clk 0:02:34.8]} 14.
Ned5 {[%clk 0:02:20.9]} 14... Nxd5 {[%clk 0:02:33.8]} 15. Bxd5 {[%clk
0:02:05.7]} 15... Be6 {[%clk 0:02:32.6]} 16. Qd2 {[%clk 0:01:58.2]} 16... Rc8
{[%clk 0:02:30.7]} 17. Rfd1 {[%clk 0:01:56.3]} 17... Nd4 {[%clk 0:02:26.5]} 18.
Rac1 {[%clk 0:01:54.3]} 18... b5 {[%clk 0:02:23.3]} 19. a3 {[%clk 0:01:54]}
19... a5 {[%clk 0:02:13.1]} 20. Bxe6 {[%clk 0:01:33.3]} 20... fxe6 {[%clk
0:02:00.9]} 21. Ne2 {[%clk 0:01:33]} 21... Nxe2+ {[%clk 0:01:58.2]} 22. Qxe2
{[%clk 0:01:33.9]} 22... Qb6 {[%clk 0:01:57.6]} 23. Rd2 {[%clk 0:01:19.4]} 23...
Rc6 {[%clk 0:01:54.9]} 24. Rcd1 {[%clk 0:01:17.2]} 24... Rhc8 {[%clk 0:01:50.2]}
25. h4 {[%clk 0:01:08.3]} 25... h5 {[%clk 0:01:41]} 26. c3 {[%clk 0:00:49.4]}
26... b4 {[%clk 0:01:38.6]} 27. axb4 {[%clk 0:00:38.4]} 27... axb4 {[%clk
0:01:34.1]} 28. c4 {[%clk 0:00:39]} 28... b3 {[%clk 0:01:27.9]} 29. Rd3 {[%clk
0:00:26.1]} 29... Qb4 {[%clk 0:01:23.9]} 30. Rg3 {[%clk 0:00:24.4]} 30... Rh8
{[%clk 0:01:18.6]} 31. Qe3 {[%clk 0:00:19.4]} 31... Qxc4 {[%clk 0:01:15.8]} 32.
Qg5 {[%clk 0:00:19.2]} 32... Rh6 {[%clk 0:01:05.5]} 33. Qe7+ {[%clk 0:00:19.1]}
33... Kh8 {[%clk 0:01:02.3]} 34. Qf8+ {[%clk 0:00:18.4]} 34... Kh7 {[%clk
0:01:02.6]} 35. Qf7+ {[%clk 0:00:14.8]} 35... Kh8 {[%clk 0:01:01.5]} 36. Rxg6
{[%clk 0:00:06.7]} 36... Rxg6 {[%clk 0:01:00.7]} 37. Qxg6 {[%clk 0:00:07.6]}
37... Qe2 {[%clk 0:00:57.8]} 38. Qh6+ {[%clk 0:00:06.6]} 38... Kg8 {[%clk
0:00:57.6]} 39. Qg6+ {[%clk 0:00:07]} 39... Kf8 {[%clk 0:00:57.9]} 40. Qf6+
{[%clk 0:00:06.9]} 40... Kg8 {[%clk 0:00:49.1]} 41. Qxe6+ {[%clk 0:00:07.6]}
41... Kg7 {[%clk 0:00:49.1]} 42. Qe7+ {[%clk 0:00:07.6]} 42... Kg8 {[%clk
0:00:47.8]} 43. Qe6+ {[%clk 0:00:07.8]} 43... Kg7 {[%clk 0:00:47.9]} 44. Qe7+
{[%clk 0:00:07.9]} 44... Kh8 {[%clk 0:00:47.9]} 45. Qe8+ {[%clk 0:00:08]} 45...
Kg7 {[%clk 0:00:47.8]} 46. Qxc6 {[%clk 0:00:07.7]} 46... Qxd1+ {[%clk
0:00:47.1]} 47. Kh2 {[%clk 0:00:08.3]} 47... Qg4 {[%clk 0:00:45.1]} 48. g3
{[%clk 0:00:08.7]} 48... Qe6 {[%clk 0:00:44]} 49. Qb7+ {[%clk 0:00:08.1]} 49...
Kf6 {[%clk 0:00:43.5]} 50. Qd5 {[%clk 0:00:08.2]} 50... Qxd5 {[%clk 0:00:43.2]}
51. exd5 {[%clk 0:00:09.1]} 51... e4 {[%clk 0:00:43.7]} 52. f4 {[%clk
0:00:09.3]} 52... exf3 {[%clk 0:00:41.3]} 53. Kg1 {[%clk 0:00:09.9]} 53... Kf5
{[%clk 0:00:40.2]} 54. Kf2 {[%clk 0:00:10.4]} 54... Kg4 {[%clk 0:00:40.8]} 0-1

[Event "*** Titled Tuesday Blitz"]
[Site "Chess.com"]
[Date "2020.12.29"]
[Round "2"]
[White "IMVoja"]
[Black "BabyBoss31"]
[Result "1-0"]
[WhiteElo "2428"]
[BlackElo "2203"]
[TimeControl "180+1"]
[EndTime "10:18:27 PST"]
[Termination "IMVoja won by resignation"]

1. d4 {[%clk 0:03:00.9]} 1... d5 {[%clk 0:02:59.3]} 2. Bg5 {[%clk 0:02:58.6]}
2... h6 {[%clk 0:02:53]} 3. Bh4 {[%clk 0:02:57.2]} 3... g5 {[%clk 0:02:43.7]} 4.
Bg3 {[%clk 0:02:56.3]} 4... Bg7 {[%clk 0:02:43]} 5. e3 {[%clk 0:02:55.1]} 5...
c5 {[%clk 0:02:39.5]} 6. c3 {[%clk 0:02:52]} 6... Qb6 {[%clk 0:02:34]} 7. Qb3
{[%clk 0:02:48]} 7... Nc6 {[%clk 0:02:24.8]} 8. Nf3 {[%clk 0:02:43.1]} 8... c4
{[%clk 0:01:54.1]} 9. Qxb6 {[%clk 0:02:24.9]} 9... axb6 {[%clk 0:01:53.7]} 10.
Na3 {[%clk 0:02:23.4]} 10... Na7 {[%clk 0:01:25.2]} 11. Be2 {[%clk 0:02:15.8]}
11... Bd7 {[%clk 0:01:22.3]} 12. Ne5 {[%clk 0:02:09.8]} 12... e6 {[%clk
0:01:02.3]} 13. Bh5 {[%clk 0:01:59.9]} 13... Bxe5 {[%clk 0:00:48]} 14. Bxe5
{[%clk 0:01:59.1]} 14... Rh7 {[%clk 0:00:48.6]} 15. h4 {[%clk 0:01:49.3]} 15...
Ke7 {[%clk 0:00:44.7]} 16. Be2 {[%clk 0:01:42.2]} 16... f6 {[%clk 0:00:40]} 17.
Bc7 {[%clk 0:01:38.2]} 17... Nc8 {[%clk 0:00:30.3]} 18. Nc2 {[%clk 0:01:31.6]}
18... Bc6 {[%clk 0:00:25.3]} 19. Nb4 {[%clk 0:01:30.2]} 19... Kd7 {[%clk
0:00:24.9]} 20. Bg3 {[%clk 0:01:28.9]} 20... Nge7 {[%clk 0:00:23.8]} 21. Bg4
{[%clk 0:01:25.4]} 21... h5 {[%clk 0:00:21.7]} 22. hxg5 {[%clk 0:01:24.7]} 22...
fxg5 {[%clk 0:00:20]} 23. Rxh5 {[%clk 0:01:22.6]} 23... Rxh5 {[%clk 0:00:20.3]}
24. Bxh5 {[%clk 0:01:23]} 24... Nd6 {[%clk 0:00:21.2]} 25. Bxd6 {[%clk
0:01:14.4]} 25... Kxd6 {[%clk 0:00:22.1]} 26. Bg4 {[%clk 0:01:14.2]} 26... Bd7
{[%clk 0:00:19.6]} 27. Ke2 {[%clk 0:01:11.4]} 27... Nc6 {[%clk 0:00:18.8]} 28.
Nc2 {[%clk 0:01:05.4]} 28... b5 {[%clk 0:00:17.2]} 29. a3 {[%clk 0:01:04.9]}
29... Rf8 {[%clk 0:00:12.9]} 30. Rh1 {[%clk 0:01:03.2]} 30... Ne7 {[%clk
0:00:11.6]} 31. Rh6 {[%clk 0:01:01.4]} 31... Nf5 {[%clk 0:00:10.3]} 32. Bxf5
{[%clk 0:00:59.7]} 32... Rxf5 {[%clk 0:00:11.2]} 33. f3 {[%clk 0:00:57.7]} 33...
g4 {[%clk 0:00:09.5]} 34. e4 {[%clk 0:00:51.7]} 34... gxf3+ {[%clk 0:00:09]} 35.
gxf3 {[%clk 0:00:51.9]} 35... Rg5 {[%clk 0:00:07.5]} 36. e5+ {[%clk 0:00:48.9]}
36... Kc7 {[%clk 0:00:07.5]} 37. Ne3 {[%clk 0:00:48]} 37... Rg1 {[%clk
0:00:07.1]} 38. Nd1 {[%clk 0:00:45.1]} 38... Rg2+ {[%clk 0:00:06.9]} 39. Nf2
{[%clk 0:00:45.3]} 39... Rg1 {[%clk 0:00:06.4]} 40. Rh1 {[%clk 0:00:45.2]} 40...
Rg3 {[%clk 0:00:05.7]} 41. Rh2 {[%clk 0:00:40.7]} 41... Rg6 {[%clk 0:00:05.4]}
42. Ng4 {[%clk 0:00:40.5]} 42... Rg5 {[%clk 0:00:04.3]} 43. Rh7 {[%clk
0:00:39.3]} 43... Kd8 {[%clk 0:00:02.7]} 44. Nf6 {[%clk 0:00:39.2]} 44... Bc8
{[%clk 0:00:02.7]} 45. Rh8+ {[%clk 0:00:38.7]} 45... Kc7 {[%clk 0:00:02.7]} 46.
Ne8+ {[%clk 0:00:38.8]} 46... Kd7 {[%clk 0:00:02.3]} 47. Nd6 {[%clk 0:00:38.7]}
47... Rg2+ {[%clk 0:00:02.2]} 48. Ke3 {[%clk 0:00:38.3]} 48... Rxb2 {[%clk
0:00:03.1]} 49. Rxc8 {[%clk 0:00:38.4]} 49... Rb3 {[%clk 0:00:04]} 50. Kd2
{[%clk 0:00:37.9]} 50... Rxa3 {[%clk 0:00:04.3]} 51. Rb8 {[%clk 0:00:38.2]}
51... Ra2+ {[%clk 0:00:05.2]} 52. Ke3 {[%clk 0:00:38.4]} 52... Ra7 {[%clk
0:00:05.9]} 53. Rxb7+ {[%clk 0:00:38]} 53... Rxb7 {[%clk 0:00:06.5]} 54. Nxb7
{[%clk 0:00:38.6]} 54... Kc6 {[%clk 0:00:07.4]} 55. Nc5 {[%clk 0:00:38.9]} 55...
Kb6 {[%clk 0:00:08.3]} 56. Nxe6 {[%clk 0:00:39]} 56... Ka5 {[%clk 0:00:09.2]}
57. Kd2 {[%clk 0:00:39.4]} 57... b4 {[%clk 0:00:10.1]} 58. cxb4+ {[%clk
0:00:38.9]} 58... Kxb4 {[%clk 0:00:11]} 59. Kc2 {[%clk 0:00:39.5]} 59... c3
{[%clk 0:00:11.9]} 60. f4 {[%clk 0:00:39.9]} 60... Kc4 {[%clk 0:00:12.8]} 61. f5
{[%clk 0:00:40]} 61... Kb4 {[%clk 0:00:13.4]} 62. f6 {[%clk 0:00:40]} 62... Kc4
{[%clk 0:00:14.3]} 63. f7 {[%clk 0:00:40.4]} 1-0

[Event "*** Titled Tuesday Blitz"]
[Site "Chess.com"]
[Date "2020.12.29"]
[Round "2"]
[White "gahryman"]
[Black "drragnar1"]
[Result "1-0"]
[WhiteElo "2689"]
[BlackElo "2423"]
[TimeControl "180+1"]
[EndTime "10:18:28 PST"]
[Termination "gahryman won by resignation"]

1. e4 {[%clk 0:03:00.9]} 1... c5 {[%clk 0:02:56.1]} 2. Nc3 {[%clk 0:03:00.6]}
2... Nc6 {[%clk 0:02:56.1]} 3. Bb5 {[%clk 0:03:00.4]} 3... Nd4 {[%clk
0:02:55.7]} 4. Nf3 {[%clk 0:03:00.4]} 4... Nxb5 {[%clk 0:02:55]} 5. Nxb5 {[%clk
0:02:59]} 5... d6 {[%clk 0:02:42]} 6. c4 {[%clk 0:02:57]} 6... Bd7 {[%clk
0:02:39.6]} 7. O-O {[%clk 0:02:49.4]} 7... g6 {[%clk 0:02:35.4]} 8. d4 {[%clk
0:02:46]} 8... Bxb5 {[%clk 0:02:34.7]} 9. cxb5 {[%clk 0:02:45.8]} 9... Bg7
{[%clk 0:02:29]} 10. dxc5 {[%clk 0:02:36.4]} 10... dxc5 {[%clk 0:02:29.9]} 11.
Qc2 {[%clk 0:02:37]} 11... Qb6 {[%clk 0:02:18.7]} 12. a4 {[%clk 0:02:35.6]}
12... Nf6 {[%clk 0:02:15.6]} 13. Ne5 {[%clk 0:02:32.1]} 13... O-O {[%clk
0:02:06.6]} 14. Nc4 {[%clk 0:02:30.5]} 14... Qe6 {[%clk 0:02:02.7]} 15. f3
{[%clk 0:02:23.8]} 15... Rfd8 {[%clk 0:01:59.8]} 16. Be3 {[%clk 0:02:23.6]}
16... b6 {[%clk 0:01:57]} 17. Rad1 {[%clk 0:02:19.1]} 17... Nd7 {[%clk
0:01:56.9]} 18. b3 {[%clk 0:02:08.4]} 18... Ne5 {[%clk 0:01:55.4]} 19. Rxd8+
{[%clk 0:01:43.6]} 19... Rxd8 {[%clk 0:01:54.9]} 20. Rd1 {[%clk 0:01:44.5]}
20... Rxd1+ {[%clk 0:01:39.4]} 21. Qxd1 {[%clk 0:01:45.4]} 21... h5 {[%clk
0:01:32.9]} 22. Qd5 {[%clk 0:01:39.3]} 22... Qxd5 {[%clk 0:01:18.9]} 23. exd5
{[%clk 0:01:39.4]} 23... Nd3 {[%clk 0:01:06.1]} 24. Kf1 {[%clk 0:01:33]} 24...
Nb4 {[%clk 0:00:43.2]} 25. d6 {[%clk 0:01:15.9]} 25... exd6 {[%clk 0:00:43.3]}
26. Nxd6 {[%clk 0:01:16.1]} 26... Be5 {[%clk 0:00:43.7]} 27. Nc8 {[%clk
0:01:11.8]} 27... Bxh2 {[%clk 0:00:36.3]} 28. Nxa7 {[%clk 0:01:11.3]} 28... Kf8
{[%clk 0:00:36.8]} 29. a5 {[%clk 0:00:58.7]} 29... bxa5 {[%clk 0:00:34.2]} 30.
Bxc5+ {[%clk 0:00:57.8]} 30... Ke8 {[%clk 0:00:34.6]} 31. b6 {[%clk 0:00:52.8]}
31... Na6 {[%clk 0:00:32.3]} 32. Be3 {[%clk 0:00:49.5]} 32... Kd7 {[%clk
0:00:29.1]} 33. Ke2 {[%clk 0:00:49.1]} 33... Bb8 {[%clk 0:00:26.9]} 34. Kd3
{[%clk 0:00:45.3]} 34... h4 {[%clk 0:00:22.7]} 35. Kc4 {[%clk 0:00:45.1]} 35...
Nb4 {[%clk 0:00:20.1]} 36. Kb5 {[%clk 0:00:43.7]} 36... Nc2 {[%clk 0:00:18.3]}
37. Bf2 {[%clk 0:00:43.9]} 37... Na1 {[%clk 0:00:17.6]} 38. Nc6 {[%clk
0:00:41.9]} 38... Bd6 {[%clk 0:00:15]} 39. Nxa5 {[%clk 0:00:41.5]} 39... g5
{[%clk 0:00:15.3]} 40. b4 {[%clk 0:00:29]} 40... Nc2 {[%clk 0:00:15.4]} 41. Bc5
{[%clk 0:00:29.5]} 41... Bb8 {[%clk 0:00:10]} 42. Nc6 {[%clk 0:00:28.4]} 42...
Kc8 {[%clk 0:00:10.4]} 43. Nxb8 {[%clk 0:00:27.2]} 43... Kxb8 {[%clk 0:00:11.3]}
44. Kc6 {[%clk 0:00:28.1]} 44... Na3 {[%clk 0:00:10.6]} 45. Bd6+ {[%clk
0:00:27.7]} 1-0

[Event "*** Titled Tuesday Blitz"]
[Site "Chess.com"]
[Date "2020.12.29"]
[Round "2"]
[White "Maksimus1998"]
[Black "Grandelicious"]
[Result "0-1"]
[WhiteElo "2550"]
[BlackElo "2851"]
[TimeControl "180+1"]
[EndTime "10:18:31 PST"]
[Termination "Grandelicious won by checkmate"]

1. e4 {[%clk 0:02:57.1]} 1... c6 {[%clk 0:02:59.9]} 2. d4 {[%clk 0:02:56.3]}
2... d5 {[%clk 0:03:00.2]} 3. e5 {[%clk 0:02:56]} 3... c5 {[%clk 0:03:00.5]} 4.
dxc5 {[%clk 0:02:54.8]} 4... e6 {[%clk 0:03:01.1]} 5. a3 {[%clk 0:02:52.5]} 5...
Bxc5 {[%clk 0:03:01.2]} 6. Bd3 {[%clk 0:02:49.6]} 6... Ne7 {[%clk 0:02:51.4]} 7.
Qg4 {[%clk 0:02:46.1]} 7... Ng6 {[%clk 0:02:49.5]} 8. Nf3 {[%clk 0:02:35.4]}
8... Nd7 {[%clk 0:02:44.7]} 9. b4 {[%clk 0:02:31.5]} 9... Be7 {[%clk 0:02:35.1]}
10. Bb2 {[%clk 0:02:31.1]} 10... O-O {[%clk 0:02:07.8]} 11. h4 {[%clk
0:02:12.4]} 11... f5 {[%clk 0:02:07.1]} 12. exf6 {[%clk 0:02:11.9]} 12... Nxf6
{[%clk 0:02:02.2]} 13. Qd4 {[%clk 0:01:52.9]} 13... Bd6 {[%clk 0:01:36.8]} 14.
Bxg6 {[%clk 0:01:51.1]} 14... hxg6 {[%clk 0:01:32.3]} 15. Ne5 {[%clk 0:01:38.7]}
15... Qc7 {[%clk 0:01:12.3]} 16. Nd2 {[%clk 0:00:56.8]} 16... Qxc2 {[%clk
0:01:00]} 17. Rc1 {[%clk 0:00:42]} 17... Qf5 {[%clk 0:00:54.4]} 18. f3 {[%clk
0:00:26.5]} 18... Qxe5+ {[%clk 0:00:42]} 19. Qxe5 {[%clk 0:00:25.8]} 19... Bxe5
{[%clk 0:00:42.9]} 20. Bxe5 {[%clk 0:00:24.8]} 20... Bd7 {[%clk 0:00:43.8]} 21.
Nb3 {[%clk 0:00:18.8]} 21... b6 {[%clk 0:00:38.6]} 22. Kd2 {[%clk 0:00:19]}
22... Rfc8 {[%clk 0:00:33]} 23. Nd4 {[%clk 0:00:18.8]} 23... Kf7 {[%clk
0:00:32.5]} 24. Rhe1 {[%clk 0:00:17.8]} 24... Ng8 {[%clk 0:00:22.3]} 25. f4
{[%clk 0:00:13.6]} 25... Ne7 {[%clk 0:00:20.4]} 26. Nf3 {[%clk 0:00:13.7]} 26...
Rxc1 {[%clk 0:00:19.1]} 27. Rxc1 {[%clk 0:00:10.8]} 27... Rc8 {[%clk 0:00:20]}
28. Ng5+ {[%clk 0:00:11]} 28... Kg8 {[%clk 0:00:17.8]} 29. Re1 {[%clk
0:00:11.2]} 29... Nf5 {[%clk 0:00:17.2]} 30. Bb2 {[%clk 0:00:06.5]} 30... Nd6
{[%clk 0:00:16.9]} 31. Kd3 {[%clk 0:00:04.2]} 31... Bb5+ {[%clk 0:00:16.6]} 32.
Kd4 {[%clk 0:00:04.1]} 32... Nc4 {[%clk 0:00:15.5]} 33. Bc1 {[%clk 0:00:03.8]}
33... Nd6 {[%clk 0:00:10.2]} 34. Nxe6 {[%clk 0:00:02.8]} 34... Nf5+ {[%clk
0:00:10.3]} 35. Kxd5 {[%clk 0:00:03.1]} 35... Bc4+ {[%clk 0:00:10]} 36. Ke5
{[%clk 0:00:03.3]} 36... Bxe6 {[%clk 0:00:10.2]} 37. g4 {[%clk 0:00:03.8]} 37...
Re8 {[%clk 0:00:07.6]} 38. Bb2 {[%clk 0:00:03.1]} 38... Bf7# {[%clk 0:00:07.8]}
0-1